bitfinex/quotes_SOLUSD_20250817
["timestamp","ask_amount","ask_price","bid_price","bid_amount"]
[1755408575139,0.06,193.01,193.0,38.42864675]
[1755408575344,0.06,193.01,193.0,38.91864675]
[1755408576025,0.06,193.01,193.0,44.0999939]
[1755408578716,0.06,193.02,193.0,44.61812861]
[1755408579023,0.06,193.03,193.02,26.0]
[1755408579226,0.06,193.03,193.02,28.16864675]
[1755408579431,0.06,193.03,193.02,28.65864675]
[1755408580635,0.06,193.03,193.02,33.83945702]
[1755408582347,1e-08,193.04,193.02,33.83945702]
[1755408582541,1e-08,193.04,193.03,38.92670093]
[1755408582743,1e-08,193.04,193.03,39.41670093]
[1755408583333,1e-08,193.04,193.03,44.59724281]
[1755408587427,1e-08,193.04,193.03,125.29724281]
[1755408587629,1e-08,193.04,193.03,124.77918863]
[1755408589071,1e-08,193.04,193.03,124.28918863]
[1755408589827,1e-08,193.04,193.03,124.77918863]
[1755408590450,1e-08,193.04,193.03,124.80918863]
[1755408592765,1e-08,193.04,193.03,124.31918863]
[1755408594971,1e-08,193.04,193.03,88.07918863]
[1755408595268,1e-08,193.04,193.03,124.81724281]
[1755408595471,1e-08,193.04,193.03,124.29918863]
[1755408595678,1e-08,193.04,193.03,124.78918863]
[1755408597473,0.72000001,193.04,193.03,4.673358]
[1755408597778,0.72000001,193.04,193.03,66.893358]
[1755408600377,0.72000001,193.04,193.03,40.893358]
[1755408601675,2.88864676,193.04,193.03,0.03]
[1755408601875,2.88864676,193.04,193.01,0.03]
[1755408601876,6.36128682,193.04,193.01,0.03]
[1755408602062,2.16864675,193.02,192.99,0.03]
[1755408602265,2.16864675,193.0,192.99,0.03]
[1755408602760,2.88864675,193.0,192.99,0.03]
[1755408604479,6.36128681,193.0,192.99,0.03]
[1755408604654,4.1070883,193.0,192.99,0.03]
[1755408604975,7.57972836,193.0,192.99,0.03]
[1755408605168,4.1070883,193.0,192.99,0.03]
[1755408605370,7.57972836,193.0,192.99,0.03]
[1755408605572,4.1070883,193.0,192.99,0.03]
[1755408605774,7.57972836,193.0,192.99,0.03]
[1755408606082,4.1070883,193.0,192.99,0.03]
[1755408606256,7.57972836,193.0,192.99,0.03]
[1755408606459,4.1070883,193.0,192.99,0.03]
[1755408606769,7.57972836,193.0,192.99,0.03]
[1755408606969,9.65684136,193.0,192.99,0.03]
[1755408607277,18.69974009,193.0,192.99,0.03]
[1755408608883,12.76107551,193.0,192.99,0.03]
[1755408609266,14.83818851,193.0,192.99,0.03]
[1755408610666,7.57972836,193.0,192.99,0.03]
[1755408610866,4.1070883,193.0,192.99,0.03]
[1755408611067,7.57972836,193.0,192.99,0.03]
[1755408611565,12.76107551,193.0,192.99,0.03]
[1755408611897,31.7279281,193.0,192.99,0.03]
[1755408612197,27.86729108,193.0,192.99,0.03]
[1755408612786,29.94451208,193.0,192.99,0.03]
[1755408614579,33.80420142,193.0,192.99,0.03]
[1755408619166,29.94451208,193.0,192.99,0.03]
[1755408619362,66.65527775,193.0,192.99,0.03]
[1755408619568,70.04236605,193.0,192.99,0.03]
[1755408621195,5.54986106,193.0,192.99,0.03]
[1755408621404,1e-08,193.04,193.0,26.0]
[1755408621576,1e-08,193.04,193.03,3.3870883]
[1755408622096,1e-08,193.04,193.03,3.9370883]
[1755408624001,1e-08,193.04,193.03,9.11763018]
[1755408626999,1e-08,193.04,193.03,5.18054188]
[1755408627191,4.09708831,193.04,193.01,36.34]
[1755408627497,3.3870883,193.03,193.01,36.34]
[1755408627889,3.3870883,193.03,192.99,26.03]
[1755408628313,3.3870883,193.03,192.99,26.58]
[1755408628911,3.3870883,193.03,193.0,5.1813194]
[1755408630990,4.0970883,193.03,193.0,5.1813194]
[1755408631622,3.3870883,193.01,192.99,0.03]
[1755408631810,3.3870883,193.0,192.99,0.03]
[1755408631994,4.0970883,193.0,192.99,0.03]
[1755408634606,9.27843545,193.0,192.99,0.03]
[1755408634818,3.3870883,193.0,192.99,0.03]
[1755408635014,3.3870883,193.01,192.99,0.03]
[1755408636519,3.46893146,193.03,192.99,0.03]
[1755408636716,6.85601976,193.03,192.99,0.58]
[1755408637322,3.46893147,193.04,192.99,0.58]
[1755408637521,3.3870883,193.02,192.99,0.03]
[1755408638317,3.46893147,193.04,192.99,0.03]
[1755408638539,3.3870883,193.02,192.99,0.58]
[1755408638916,3.3870883,193.02,193.0,5.18134715]
[1755408639454,4.0970883,193.02,193.0,5.18134715]
[1755408640051,4.0970883,193.02,192.99,0.03]
[1755408640260,3.46893146,193.03,192.99,0.03]
[1755408640420,3.3870883,193.01,192.99,0.03]
[1755408640627,3.3870883,193.01,193.0,0.03]
[1755408641648,3.3870883,193.02,193.0,0.03]
[1755408642348,6.86611449,193.02,193.0,0.03]
[1755408642761,7.57611449,193.02,193.0,0.03]
[1755408643058,3.3870883,193.01,193.0,0.03]
[1755408644351,4.0870883,193.01,193.0,0.03]
[1755408645034,3.3870883,193.01,193.0,0.03]
[1755408645352,7.5672701,193.01,193.0,0.03]
[1755408645866,4.1801818,193.01,193.0,0.03]
[1755408646067,7.5672701,193.01,193.0,0.03]
[1755408656054,31.72370236,193.01,193.0,0.03]
[1755408656237,36.05986668,193.01,193.0,0.03]
[1755408657274,15.10621557,193.0,192.99,0.03]
[1755408657459,26.54262366,193.0,192.99,0.03]
[1755408657675,31.72397081,193.0,192.99,0.03]
[1755408658074,31.72397081,193.0,192.97,0.03]
[1755408658259,22.84742682,192.98,192.97,0.03]
[1755408658463,66.47674661,192.98,192.97,0.03]
[1755408658656,67.17674661,192.98,192.97,0.03]
[1755408659259,72.35863074,192.98,192.97,0.03]
[1755408660283,68.00450779,192.98,192.97,0.03]
[1755408660472,31.72450779,192.98,192.97,0.03]
[1755408660681,11.43640809,192.98,192.97,0.03]
[1755408660856,16.61829222,192.98,192.97,0.03]
[1755408661060,11.43640809,192.98,192.97,0.03]
[1755408662180,47.75640809,192.98,192.97,0.03]
[1755408662364,52.93829222,192.98,192.97,0.03]
[1755408663562,49.06915423,192.98,192.97,0.03]
[1755408663893,52.93752068,192.98,192.97,0.03]
[1755408665583,68.04373625,192.98,192.97,0.03]
[1755408665780,15.10621557,192.97,192.96,0.03]
[1755408666099,26.54185212,192.97,192.96,0.03]
[1755408666513,29.92894042,192.97,192.96,0.03]
[1755408666876,31.86299138,192.97,192.96,0.03]
[1755408667608,37.04514404,192.97,192.96,0.03]
[1755408667909,35.11109308,192.97,192.96,0.03]
[1755408669573,51.38391027,192.97,192.96,0.03]
[1755408669773,47.03563655,192.97,192.96,0.03]
[1755408670493,47.73563655,192.97,192.96,0.03]
[1755408672676,43.8672701,192.97,192.96,0.03]
[1755408672982,47.73271619,192.97,192.96,0.03]
[1755408678685,47.69271619,192.97,192.96,0.03]
[1755408681896,43.8272701,192.97,192.96,0.03]
[1755408682108,47.69119849,192.97,192.96,0.03]
[1755408682518,47.69109223,192.97,192.96,0.03]
[1755408691204,47.69491859,192.97,192.96,0.03]
[1755408691430,52.10319231,192.97,192.96,0.03]
[1755408691611,52.10405194,192.97,192.96,0.03]
[1755408692017,72.39242017,192.97,192.96,0.03]
[1755408692218,15.10621557,192.96,192.95,0.03]
[1755408692415,29.90908209,192.96,192.95,0.03]
[1755408692925,55.90908209,192.96,192.95,0.03]
[1755408694828,61.09150331,192.96,192.95,0.03]
[1755408695314,63.02641458,192.96,192.95,0.03]
[1755408695617,63.02641458,192.96,192.93,0.03]
[1755408695824,64.5575953,192.95,192.93,0.03]
[1755408696021,67.9446836,192.95,192.93,0.03]
[1755408696195,67.2646836,192.95,192.93,0.03]
[1755408696400,67.9446836,192.95,192.93,0.03]
[1755408697113,67.94649261,192.95,192.93,0.03]
[1755408698954,67.94910687,192.95,192.93,0.03]
[1755408700610,69.88980012,192.95,192.93,0.03]
[1755408700810,75.69430616,192.95,192.93,0.03]
[1755408704345,82.24348016,192.95,192.93,0.03]
[1755408705027,76.43897412,192.95,192.93,0.03]
[1755408705405,76.43897412,192.95,192.92,0.03]
[1755408705628,7.74599715,192.93,192.92,0.03]
[1755408705834,51.36192871,192.93,192.92,0.03]
[1755408706031,52.07192871,192.93,192.92,0.03]
[1755408706417,48.68329273,192.93,192.92,0.03]
[1755408706642,51.36038103,192.93,192.92,0.03]
[1755408708018,51.36038103,192.93,192.92,0.58]
[1755408708830,51.36038103,192.93,192.92,0.03]
[1755408709029,47.00147218,192.93,192.92,0.03]
[1755408709436,43.61492116,192.93,192.92,0.03]
[1755408709621,47.00200946,192.93,192.92,0.03]
[1755408710744,45.78406404,192.93,192.92,0.03]
[1755408712427,50.14297289,192.93,192.92,0.03]
[1755408713345,50.85297289,192.93,192.92,0.03]
[1755408715360,48.68383001,192.93,192.92,0.03]
[1755408715525,46.49138133,192.93,192.91,0.03]
[1755408715853,11.7082565,192.92,192.91,0.03]
[1755408716938,13.87739938,192.92,192.91,0.03]
[1755408718146,14.58739938,192.92,192.91,0.03]
[1755408718554,10.71534273,192.92,192.91,0.03]
[1755408718751,14.5861866,192.92,192.91,0.03]
[1755408720730,12.41704372,192.92,192.91,0.03]
[1755408720954,14.5861866,192.92,192.91,0.03]
[1755408722936,12.41704372,192.92,192.91,0.03]
[1755408723157,13.8761866,192.92,192.91,0.03]
[1755408724261,14.5861866,192.92,192.91,0.03]
[1755408724864,13.8761866,192.92,192.91,0.03]
[1755408725365,11.70704372,192.92,192.91,0.03]
[1755408725665,13.8761866,192.92,192.91,0.03]
[1755408726339,11.70704372,192.92,192.91,0.03]
[1755408726540,13.8761866,192.92,192.91,0.03]
[1755408726747,10.00534273,192.92,192.91,0.03]
[1755408726952,14.58802063,192.92,192.91,0.03]
[1755408727147,12.41887775,192.92,192.91,0.03]
[1755408727441,14.58944878,192.92,192.91,0.03]
[1755408729166,10.23343073,192.92,192.91,0.03]
[1755408730674,10.23343073,192.92,192.89,0.03]
[1755408730835,2.16914288,192.9,192.89,0.03]
[1755408731031,9.52343073,192.9,192.89,0.03]
[1755408732653,13.88073094,192.9,192.89,0.03]
[1755408734082,11.71158806,192.9,192.89,0.58]
[1755408734240,11.71158806,192.9,192.89,0.03]
[1755408734852,12.38158806,192.9,192.89,0.03]
[1755408735052,13.88073094,192.9,192.89,0.03]
[1755408735262,11.71158806,192.9,192.89,0.03]
[1755408735459,7.35428785,192.9,192.89,0.03]
[1755408735875,3.4801818,192.9,192.89,0.03]
[1755408736168,11.71966763,192.9,192.89,0.03]
[1755408736365,7.35769804,192.9,192.89,0.03]
[1755408737290,92.72708966,192.9,192.89,0.03]
[1755408737448,92.72708966,192.9,192.87,0.03]
[1755408737449,41.10621557,192.88,192.87,0.03]
[1755408737653,88.81192968,192.88,192.87,0.03]
[1755408737869,89.48192968,192.88,192.87,0.03]
[1755408738276,103.94458889,192.88,192.87,0.03]
[1755408739147,95.21870368,192.88,192.87,0.03]
[1755408739353,109.1291596,192.88,192.87,0.03]
[1755408739789,100.40327439,192.88,192.87,0.03]
[1755408739989,109.11310868,192.88,192.87,0.03]
[1755408741580,109.11310868,192.88,192.85,0.03]
[1755408741788,7.96947761,192.86,192.85,0.03]
[1755408741994,53.50604884,192.86,192.85,0.03]
[1755408742158,54.17604884,192.86,192.85,0.03]
[1755408742493,80.17002855,192.86,192.85,0.03]
[1755408742650,79.55480218,192.86,192.85,0.03]
[1755408743268,85.35446824,192.86,192.85,0.03]
[1755408743481,79.55480218,192.86,192.85,0.03]
[1755408743852,79.54358342,192.86,192.85,0.03]
[1755408744271,100.44736241,192.86,192.85,0.03]
[1755408744879,94.64932521,192.86,192.85,0.03]
[1755408745062,94.64778597,192.86,192.85,0.03]
[1755408745459,15.10621557,192.85,192.81,0.03]
[1755408745795,2.16914288,192.82,192.81,0.61]
[1755408746078,7.34433729,192.82,192.81,0.61]
[1755408746684,9.51348017,192.82,192.81,0.61]
[1755408746982,9.51348017,192.82,192.81,0.03]
[1755408748066,9.51183189,192.82,192.81,0.03]
[1755408749568,9.51183189,192.82,192.81,0.61]
[1755408750471,9.51183189,192.82,192.81,0.03]
[1755408752083,7.34268901,192.82,192.81,0.03]
[1755408752287,9.51183189,192.82,192.81,0.03]
[1755408754097,7.33925917,192.82,192.81,0.03]
[1755408754276,7.33925917,192.82,192.81,0.61]
[1755408754801,7.33925917,192.82,192.81,2.77914288]
[1755408755007,2.9001818,192.84,192.82,26.0]
[1755408755208,15.58644,192.91,192.86,26.0]
[1755408755500,4.40707662,192.94,192.86,26.0]
[1755408755501,0.06,192.94,192.9,2.16914288]
[1755408755667,3.8611929,192.93,192.92,2.16914288]
[1755408755870,3.8611929,192.93,192.9,2.16914288]
[1755408756068,3.8611929,192.92,192.9,7.35305711]
[1755408756264,0.06,192.94,192.9,5.18391423]
[1755408756465,3.86091706,192.93,192.9,7.35305711]
[1755408756690,3.86091706,192.92,192.9,8.57176825]
[1755408757101,0.06,192.94,192.9,8.57176825]
[1755408757399,0.06,192.94,192.85,38.96298851]
[1755408757400,3.86039776,192.93,192.89,3.38785402]
[1755408757572,3.86030901,192.92,192.89,3.38785402]
[1755408757769,4.11785402,192.94,192.89,3.38785402]
[1755408757970,3.8580052,192.93,192.89,3.38785402]
[1755408758202,3.8580052,192.92,192.89,3.38785402]
[1755408758367,0.73,192.94,192.9,5.18403317]
[1755408758690,3.85671726,192.93,192.9,5.18403317]
[1755408758864,3.85671726,192.92,192.9,5.18403317]
[1755408759065,0.73,192.94,192.9,5.18403317]
[1755408759266,3.85650904,192.93,192.9,5.18403317]
[1755408759472,3.85650904,192.92,192.89,3.38785402]
[1755408759695,0.73,192.94,192.89,3.38785402]
[1755408759866,3.85629216,192.93,192.89,3.38785402]
[1755408760070,3.85629216,192.92,192.89,3.38785402]
[1755408760302,0.73,192.94,192.89,3.38785402]
[1755408760473,3.8559186,192.93,192.9,5.18403317]
[1755408760676,3.8559186,192.92,192.9,5.18403317]
[1755408760889,0.73,192.94,192.9,5.18403317]
[1755408761198,3.85558048,192.93,192.9,5.18403317]
[1755408761413,3.85558048,192.93,192.9,8.57188719]
[1755408761602,3.85558048,192.93,192.9,5.18403317]
[1755408762471,3.85558048,192.92,192.9,5.18403317]
[1755408762674,0.06,192.94,192.9,5.18403317]
[1755408762894,3.85577438,192.93,192.9,5.18403317]
[1755408763107,0.73,192.94,192.9,5.18403317]
[1755408763308,4.52694339,192.93,192.9,5.18403317]
[1755408763604,3.85694339,192.92,192.89,3.38785402]
[1755408763773,3.38785402,192.9,192.84,5.18564613]
[1755408763976,7.91479741,192.89,192.84,8.57350015]
[1755408764288,3.85578705,192.88,192.84,8.57350015]
[1755408764671,3.85578705,192.88,192.84,5.18564613]
[1755408764874,7.93364107,192.88,192.83,8.57376907]
[1755408765084,4.07785402,192.88,192.83,8.57376907]
[1755408765370,0.69,192.88,192.83,8.57376907]
[1755408765901,3.38785402,192.89,192.84,3.38785402]
[1755408766203,3.85637184,192.88,192.84,3.38785402]
[1755408766394,4.07785402,192.9,192.84,3.38785402]
[1755408766574,3.85661678,192.89,192.84,3.38785402]
[1755408766774,3.85661678,192.88,192.84,3.38785402]
[1755408767001,4.34352087,192.93,192.87,3.38785402]
[1755408767209,7.3278356,192.92,192.9,3.38785402]
[1755408767511,0.06,192.94,192.9,3.38785402]
[1755408767696,7.32794711,192.93,192.89,3.38785402]
[1755408768003,7.32791943,192.92,192.89,3.38785402]
[1755408768175,3.47124824,192.91,192.89,3.38785402]
[1755408768382,3.47124824,192.92,192.89,3.38785402]
[1755408768599,3.47124824,192.91,192.89,3.38785402]
[1755408768900,3.47124824,192.92,192.89,3.38785402]
[1755408769109,3.47124824,192.91,192.89,3.38785402]
[1755408769410,3.47124824,192.92,192.89,3.38785402]
[1755408769701,3.47124824,192.91,192.87,5.18483952]
[1755408769902,3.47124824,192.91,192.89,5.18430193]
[1755408770222,3.47124824,192.91,192.87,5.18483952]
[1755408770430,7.54798254,192.9,192.87,5.18483952]
[1755408770576,4.16012852,192.89,192.87,5.18483952]
[1755408770998,3.47012852,192.89,192.87,5.18483952]
[1755408771322,3.47012852,192.9,192.87,5.18483952]
[1755408771600,3.47012852,192.89,192.87,5.18483952]
[1755408771800,0.69,192.88,192.86,41.42507829]
[1755408772001,4.15971796,192.88,192.86,41.42507829]
[1755408772176,3.46971796,192.88,192.86,41.42507829]
[1755408772509,3.46971796,192.89,192.86,41.42507829]
[1755408772697,3.46971796,192.88,192.86,41.42507829]
[1755408772897,3.46971796,192.89,192.86,41.42507829]
[1755408773104,3.46971796,192.88,192.86,41.42507829]
[1755408773298,3.46971796,192.88,192.86,5.18507829]
[1755408774103,0.69,192.87,192.86,5.18507829]
[1755408774597,3.46971796,192.89,192.86,5.18507829]
[1755408774908,4.15971796,192.88,192.86,5.18507829]
[1755408775110,0.69,192.88,192.86,5.18507829]
[1755408775484,4.15971796,192.88,192.86,5.18507829]
[1755408775791,0.69,192.88,192.86,5.18507829]
[1755408775988,0.69,192.87,192.84,5.1854289]
[1755408776188,0.69,192.86,192.84,5.1854289]
[1755408776415,0.69,192.85,192.83,5.18589927]
[1755408776614,0.69,192.84,192.83,5.18589927]
[1755408776905,0.69,192.84,192.81,41.43644864]
[1755408777119,0.69,192.83,192.81,41.43644864]
[1755408777910,3.46908531,192.84,192.81,41.43644864]
[1755408778091,0.69,192.84,192.81,41.43644864]
[1755408780201,3.46882537,192.83,192.81,41.43644864]
[1755408780712,3.46882537,192.85,192.82,3.38785402]
[1755408780908,26.06,192.91,192.81,41.43644864]
[1755408780909,4.07785402,192.9,192.81,41.43644864]
[1755408781098,11.4000314,192.89,192.83,3.38785402]
[1755408781299,8.01217738,192.88,192.83,3.38785402]
[1755408781484,7.32164796,192.87,192.83,3.38785402]
[1755408781684,4.1585019,192.86,192.83,3.38785402]
[1755408781995,0.69,192.85,192.81,41.43644864]
[1755408782203,0.69,192.87,192.83,3.38785402]
[1755408782397,7.31913419,192.86,192.81,41.43644864]
[1755408782711,3.46705437,192.85,192.82,3.38785402]
[1755408783014,4.1567934,192.84,192.81,41.43644864]
[1755408783215,0.69,192.83,192.81,41.43644864]
[1755408783799,0.69,192.82,192.81,0.03]
[1755408784509,0.69,192.86,192.81,3.41785402]
[1755408784701,7.31859495,192.85,192.83,3.38785402]
[1755408784886,3.38785402,192.88,192.81,36.31]
[1755408784887,3.46678812,192.84,192.81,36.31]
[1755408785085,4.343521,192.9,192.84,26.0]
[1755408785086,3.46678812,192.88,192.84,26.0]
[1755408785298,0.06,192.91,192.87,3.38785402]
[1755408785503,7.32095224,192.9,192.84,29.38785402]
[1755408785715,0.06,192.91,192.89,3.38785402]
[1755408785923,3.91330201,192.91,192.89,5.18430193]
[1755408786135,0.06,192.91,192.89,5.18430193]
[1755408787015,0.06,192.91,192.9,5.18403317]
[1755408787219,0.06,192.91,192.9,8.57188719]
[1755408787220,3.52845422,192.91,192.9,8.57188719]
[1755408787600,3.52845422,192.91,192.88,41.6043922]
[1755408787799,0.75,192.91,192.89,3.38785402]
[1755408788100,0.06,192.91,192.89,3.38785402]
[1755408788297,0.06,192.91,192.88,41.6043922]
[1755408788524,0.75,192.91,192.89,3.38785402]
[1755408789115,0.75,192.91,192.88,41.6043922]
[1755408789314,0.75,192.91,192.89,3.38785402]
[1755408789516,3.4686116,192.9,192.88,41.6043922]
[1755408789721,3.46882645,192.89,192.88,44.99224622]
[1755408789915,3.46882645,192.89,192.88,41.6043922]
[1755408790123,3.46882645,192.89,192.88,44.99224622]
[1755408791019,3.46882645,192.89,192.88,41.6043922]
[1755408791325,3.46882645,192.89,192.88,44.99224622]
[1755408791530,3.46882645,192.9,192.88,44.99224622]
[1755408791825,0.06,192.91,192.89,3.38785402]
[1755408792028,0.06,192.91,192.9,3.38785402]
[1755408793333,0.06,192.91,192.9,8.57188719]
[1755408794324,0.06,192.91,192.9,5.18403317]
[1755408794532,0.06,192.91,192.9,8.57188719]
[1755408796820,0.06,192.94,192.93,26.0]
[1755408797020,0.06,192.99,192.97,26.0]
[1755408797333,0.06,192.99,192.98,15.10621557]
[1755408797517,1e-08,192.99,192.98,19.012258]
[1755408797721,1e-08,192.99,192.98,15.62440398]
[1755408797905,1e-08,192.99,192.98,19.012258]
[1755408798111,1e-08,193.01,193.0,41.10621557]
[1755408798333,1e-08,193.01,193.0,86.63355145]
[1755408798720,1e-08,193.03,193.01,15.10621557]
[1755408798922,1e-08,193.03,193.02,40.40593504]
[1755408800009,1e-08,193.03,193.02,45.58674531]
[1755408800620,1e-08,193.03,193.02,45.06866429]
[1755408801524,0.68000001,193.03,193.02,45.06866429]
[1755408804821,1e-08,193.03,193.02,45.06866429]
[1755408817362,1e-08,193.03,193.02,41.68081027]
[1755408817551,1e-08,193.03,193.02,45.06866429]
[1755408823464,0.68000001,193.03,193.02,45.06866429]
[1755408824648,1e-08,193.03,193.02,45.58674531]
[1755408826753,1e-08,193.03,193.02,45.61674531]
[1755408826952,1e-08,193.03,193.02,126.31674531]
[1755408827251,1e-08,193.03,193.02,125.79866429]
[1755408829387,3.8412647,193.03,193.02,125.79866429]
[1755408831765,3.84339636,193.03,193.02,125.79866429]
[1755408832576,4.54339636,193.03,193.02,125.79866429]
[1755408832975,3.84339636,193.03,193.02,125.59866429]
[1755408834194,7.30738026,193.03,193.02,125.59866429]
[1755408835284,7.31018858,193.03,193.02,125.59866429]
[1755408835983,7.31018858,193.03,193.02,125.57866429]
[1755408838787,8.01018858,193.03,193.02,125.57866429]
[1755408839984,7.31018858,193.03,193.02,125.57866429]
[1755408840365,7.31018858,193.03,193.02,140.68487986]
[1755408840571,1e-08,193.03,193.02,140.68487986]
[1755408840787,1e-08,193.03,193.02,137.29702584]
[1755408840989,1e-08,193.04,193.03,15.10621557]
[1755408841168,1e-08,193.04,193.03,19.01212377]
[1755408841366,1e-08,193.04,193.03,136.05212377]
[1755408841606,1e-08,193.04,193.03,135.53406959]
[1755408842100,1e-08,193.04,193.03,140.71461147]
[1755408843367,1e-08,193.04,193.03,60.01461147]
[1755408843678,1e-08,193.04,193.03,60.53266565]
[1755408845094,1e-08,193.04,193.03,60.51266565]
[1755408849681,1e-08,193.04,193.03,167.21266565]
[1755408849888,1e-08,193.04,193.03,137.30675745]
[1755408850080,1e-08,193.04,193.03,140.69461147]
[1755408851807,1e-08,193.04,193.03,137.30675745]
[1755408851982,1e-08,193.04,193.03,140.69461147]
[1755408853597,0.76,193.06,193.05,26.0]
[1755408853896,3.5414013,193.06,193.05,146.40785402]
[1755408854487,4.2514013,193.06,193.05,110.08785402]
[1755408854714,8.11845492,193.06,193.05,80.7]
[1755408854877,11.50630894,193.06,193.05,117.02]
[1755408855083,8.11845492,193.06,193.05,117.02]
[1755408855777,8.11845492,193.06,193.05,122.20000518]
[1755408858001,4.2514013,193.06,193.05,122.20000518]
[1755408858205,8.11940484,193.06,193.05,122.20000518]
[1755408858392,8.11940484,193.06,193.02,0.03]
[1755408858393,11.50725886,193.06,193.02,0.03]
[1755408858593,3.38785402,193.03,193.0,36.37]
[1755408858789,3.38785402,193.01,193.0,0.03]
[1755408858983,10.73725886,193.01,193.0,0.03]
[1755408859191,11.44725886,193.01,193.0,0.03]
[1755408859483,11.44725886,193.01,193.0,5.21134715]
[1755408860103,8.05940484,193.01,193.0,5.21134715]
[1755408860406,11.44725886,193.01,193.0,0.03]
[1755408861803,16.62833756,193.01,192.99,0.03]
[1755408861990,11.44725886,193.0,192.98,0.03]
[1755408862194,15.08035888,192.99,192.98,0.03]
[1755408862388,11.44725886,192.99,192.98,0.03]
[1755408866209,7.57925532,192.99,192.98,0.03]
[1755408866790,11.42867621,192.99,192.98,0.03]
[1755408870017,11.40130247,192.99,192.98,0.03]
[1755408872993,8.00664019,192.99,192.98,0.03]
[1755408873194,4.09785402,192.99,192.98,0.03]
[1755408873396,7.55734742,192.99,192.98,0.03]
[1755408873595,4.09785402,192.99,192.98,0.03]
[1755408874212,3.38785402,193.0,192.98,0.03]
[1755408874622,4.09785402,193.0,192.98,0.03]
[1755408874917,0.71,192.99,192.98,0.03]
[1755408875389,4.09785402,192.99,192.98,0.03]
[1755408876291,4.15785402,192.99,192.98,0.03]
[1755408879604,0.77,192.99,192.98,0.03]
[1755408879806,4.15785402,192.99,192.98,0.03]
[1755408880796,0.77,192.99,192.98,0.03]
[1755408880996,4.15785402,192.99,192.98,0.03]
[1755408881494,0.77,192.99,192.98,0.03]
[1755408881693,4.15785402,192.99,192.98,0.03]
[1755408887545,7.61734742,192.99,192.98,0.03]
[1755408887736,4.15785402,192.99,192.98,0.03]
[1755408887918,7.61734742,192.99,192.98,0.03]
[1755408888251,0.77,192.99,192.98,0.03]
[1755408888431,7.61734742,192.99,192.98,0.03]
[1755408888619,4.15785402,192.99,192.98,0.03]
[1755408888820,7.61734742,192.99,192.98,0.03]
[1755408889042,4.15785402,192.99,192.98,0.03]
[1755408889243,7.61734742,192.99,192.98,0.03]
[1755408889425,4.15785402,192.99,192.98,0.03]
[1755408889950,7.61734742,192.99,192.98,0.03]
[1755408890250,4.15785402,192.99,192.98,0.03]
[1755408890768,7.61734742,192.99,192.98,0.03]
[1755408890927,4.15785402,192.99,192.98,0.03]
[1755408891341,7.61734742,192.99,192.98,0.03]
[1755408891556,4.15785402,192.99,192.98,0.03]
[1755408892158,7.61734742,192.99,192.98,0.03]
[1755408892335,4.15785402,192.99,192.98,0.03]
[1755408893725,7.61734742,192.99,192.98,0.03]
[1755408893941,4.15785402,192.99,192.98,0.03]
[1755408894254,7.61734742,192.99,192.98,0.03]
[1755408894441,4.15785402,192.99,192.98,0.03]
[1755408894637,7.61734742,192.99,192.98,0.03]
[1755408894842,4.15785402,192.99,192.98,0.03]
[1755408895146,7.61734742,192.99,192.98,0.03]
[1755408895348,4.15785402,192.99,192.98,0.03]
[1755408895520,7.61734742,192.99,192.98,0.03]
[1755408895722,4.15785402,192.99,192.98,0.03]
[1755408895955,7.61734742,192.99,192.98,0.03]
[1755408896123,4.15785402,192.99,192.98,0.03]
[1755408896459,7.61734742,192.99,192.98,0.03]
[1755408896651,6.39702752,192.99,192.98,0.03]
[1755408898257,10.24089125,192.99,192.98,0.03]
[1755408902157,10.24888685,192.99,192.98,0.03]
[1755408902455,15.43050247,192.99,192.98,0.03]
[1755408902663,2.16753412,192.98,192.97,0.03]
[1755408902855,14.525542,192.98,192.97,0.03]
[1755408903355,10.18888685,192.98,192.97,0.03]
[1755408905059,10.19595701,192.98,192.97,0.03]